bitfinex/quotes_ETHUSD_20240924
["timestamp","ask_amount","ask_price","bid_price","bid_amount"]
[1727149505368,12.21619884,2629.3,2629.2,1.5]
[1727149505542,12.21609828,2629.3,2629.2,1.5]
[1727149505744,12.21610737,2629.3,2629.2,1.5]
[1727149510534,12.21554488,2629.3,2629.2,1.5]
[1727149511171,9.82441107,2629.3,2629.2,1.5]
[1727149511333,12.21555444,2629.3,2629.2,1.5]
[1727149512362,9.82441107,2629.3,2629.2,1.5]
[1727149513071,12.21555363,2629.3,2629.2,1.5]
[1727149514778,9.82441107,2629.3,2629.2,1.5]
[1727149515078,12.21573714,2629.3,2629.2,1.5]
[1727149515577,12.21583405,2629.3,2629.2,1.5]
[1727149515763,9.82441107,2629.3,2629.2,1.5]
[1727149516069,12.21583402,2629.3,2629.2,1.5]
[1727149516269,9.82441107,2629.3,2629.2,1.5]
[1727149517071,10.74232603,2629.3,2629.2,1.5]
[1727149517295,9.27768803,2629.3,2629.2,1.5]
[1727149517504,2.47439803,2629.3,2629.2,1.5]
[1727149517712,2.47439803,2629.3,2629.2,2.2752]
[1727149518500,0.08272179,2629.3,2629.2,2.2752]
[1727149519406,0.08272179,2629.3,2629.2,2.51032654]
[1727149521397,3.88601179,2629.3,2629.2,2.2752]
[1727149522901,0.08272179,2629.3,2629.2,2.2752]
[1727149523585,3.88601179,2629.3,2629.2,2.2752]
[1727149524398,5.88075609,2629.3,2629.2,2.2752]
[1727149524608,3.88601179,2629.3,2629.2,2.2752]
[1727149524970,0.08272179,2629.3,2629.2,2.2752]
[1727149525292,0.08272179,2629.3,2629.2,2.50272]
[1727149525496,3.80292,2629.6,2629.2,2.50272]
[1727149525692,0.0793617,2629.3,2629.2,2.50272]
[1727149525865,3.80292,2629.6,2629.2,2.50272]
[1727149526073,0.0793617,2629.5,2629.2,2.50272]
[1727149526297,0.0793617,2629.5,2629.3,0.250272]
[1727149526696,3.8823917,2629.5,2629.3,0.250272]
[1727149527007,5.34710563,2629.5,2629.2,2.2752]
[1727149527211,3.80325,2629.4,2629.2,2.2752]
[1727149527504,0.07940291,2629.3,2629.2,2.2752]
[1727149527880,9.07085393,2629.5,2629.2,2.2752]
[1727149528081,0.0382057,2629.8,2629.2,2.2752]
[1727149528082,0.07940291,2629.4,2629.2,2.2752]
[1727149528278,0.0382057,2629.8,2629.3,0.607866]
[1727149528279,3.8407957,2629.8,2629.3,0.607866]
[1727149528483,0.07938746,2629.7,2629.5,0.7752]
[1727149528901,0.0382057,2629.8,2629.5,0.7752]
[1727149529095,0.07938746,2629.6,2629.5,0.7752]
[1727149529297,0.0382057,2629.8,2629.5,0.7752]
[1727149529473,1.67527868,2629.6,2629.5,0.7752]
[1727149529673,1.67527868,2629.6,2629.5,1.62096045]
[1727149530518,0.07938746,2629.6,2629.5,1.62096045]
[1727149531376,0.07938746,2629.6,2629.5,5.42396045]
[1727149531596,0.0382057,2629.8,2629.7,0.7932]
[1727149531804,0.0382057,2629.8,2629.7,4.67195254]
[1727149532005,0.0382057,2629.8,2629.7,5.60400284]
[1727149532387,0.11759316,2629.8,2629.7,5.60400284]
[1727149533281,0.11759316,2629.8,2629.7,1.80129284]
[1727149534291,0.11759316,2629.8,2629.7,1.7252503]
[1727149534495,0.11759316,2629.8,2629.7,5.5279603]
[1727149534690,0.11759316,2629.8,2629.7,5.60400089]
[1727149540433,0.11759316,2629.8,2629.7,7.06871482]
[1727149540741,0.0382057,2629.8,2629.7,7.06871482]
[1727149542922,0.0382057,2629.8,2629.7,5.60400089]
[1727149543310,0.11800522,2629.8,2629.7,5.60400089]
[1727149544063,0.11800522,2629.8,2629.7,7.06871482]
[1727149544197,0.11800522,2629.8,2629.7,10.61871482]
[1727149544405,0.11800522,2629.8,2629.7,10.54267423]
[1727149544406,0.0382057,2629.8,2629.7,10.54267423]
[1727149544629,0.0382057,2629.8,2629.7,11.04267423]
[1727149548532,0.0382057,2629.8,2629.7,9.5279603]
[1727149549850,0.0382057,2629.8,2629.7,10.99267423]
[1727149556768,0.0382057,2629.8,2629.7,9.5279603]
[1727149557667,0.0382057,2629.8,2629.7,11.54267423]
[1727149559637,3.08671202,2630.9,2630.3,3.8018]
[1727149559838,6.86155515,2631.0,2630.3,3.8018]
[1727149560059,0.07789133,2630.8,2630.3,3.8018]
[1727149560271,6.86155515,2631.0,2630.3,3.8018]
[1727149560469,0.07789133,2630.7,2630.3,3.8018]
[1727149560674,3.80127,2630.7,2630.2,0.07602472]
[1727149560836,0.07789133,2630.6,2630.2,3.87799472]
[1727149561167,3.80121,2630.8,2630.2,3.87799472]
[1727149561384,0.07789133,2630.5,2630.2,3.87799472]
[1727149561545,3.80121,2630.8,2630.2,3.87799472]
[1727149561748,0.07789133,2630.4,2630.2,3.80197]
[1727149561950,5.26592393,2630.8,2630.2,3.87799979]
[1727149562147,0.07789133,2630.3,2630.2,3.87799979]
[1727149562358,6.86181515,2630.8,2630.2,3.87799979]
[1727149562575,0.07789133,2630.3,2630.2,3.87799979]
[1727149562772,0.028,2630.5,2630.1,3.87802876]
[1727149562982,0.07789133,2630.3,2630.1,3.802]
[1727149563284,0.028,2630.5,2630.1,3.802]
[1727149563451,0.07789133,2630.2,2630.1,3.802]
[1727149563790,0.028,2630.5,2630.1,4.64545788]
[1727149564089,0.07789133,2630.2,2630.0,3.80221]
[1727149564282,0.028,2630.5,2629.9,4.55653]
[1727149564589,0.028,2630.5,2630.0,3.80226]
[1727149564750,0.028,2630.5,2630.0,3.87829395]
[1727149564751,0.07789133,2630.4,2630.0,3.87829395]
[1727149566348,0.07789133,2630.4,2630.0,3.80226]
[1727149567712,3.87961133,2630.4,2629.9,4.55653]
[1727149567858,5.34432526,2630.4,2629.9,3.80233]
[1727149568062,3.87961133,2630.4,2629.9,3.80233]
[1727149568694,3.87961133,2630.4,2629.9,3.80232]
[1727149568903,3.87961133,2630.4,2629.9,4.80380802]
[1727149571283,5.47550255,2630.4,2629.9,4.80380802]
[1727149573398,1.59589122,2630.3,2629.9,4.80380802]
[1727149573595,5.47550255,2630.4,2629.9,4.80380802]
[1727149573897,0.07770605,2630.2,2629.9,4.80380802]
[1727149574062,1.59589122,2630.3,2630.0,0.78798441]
[1727149574265,0.07770605,2630.1,2630.0,0.78798441]
[1727149574464,1.59589122,2630.3,2630.0,0.78798441]
[1727149574664,0.07770605,2630.1,2630.0,0.78798441]
[1727149574904,1.59589122,2630.3,2630.0,0.78798441]
[1727149575211,1.59589122,2630.3,2629.9,4.80380802]
[1727149575212,0.07770605,2630.2,2629.9,4.80380802]
[1727149575385,1.59589122,2630.3,2629.9,4.80380802]
[1727149575699,0.07770605,2630.1,2629.9,4.80380802]
[1727149575905,1.59589122,2630.3,2629.9,4.80380802]
[1727149576698,0.07770605,2630.2,2629.9,4.80380802]
[1727149576913,0.07770605,2630.2,2630.0,0.78798449]
[1727149577081,1.59589122,2630.3,2630.0,0.78798449]
[1727149577402,1.59589122,2630.3,2630.0,4.59026449]
[1727149577563,0.07767001,2630.2,2630.0,0.78798449]
[1727149577771,1.59589122,2630.3,2630.0,0.78798449]
[1727149577963,0.07767001,2630.1,2630.0,0.78798449]
[1727149578203,1.59589122,2630.2,2630.0,0.78798449]
[1727149578365,3.82956,2630.5,2630.0,0.78798449]
[1727149578366,0.07767001,2630.1,2630.0,0.78798449]
[1727149578567,1.59589122,2630.2,2630.0,4.59024449]
[1727149578765,0.07767001,2630.1,2630.0,4.59024449]
[1727149579470,0.07767001,2630.1,2630.0,5.4447829]
[1727149579779,1.59589122,2630.4,2630.0,5.4447829]
[1727149579977,1.59589122,2630.4,2630.2,3.80187]
[1727149580188,1.59589122,2630.4,2630.2,7.67977087]
[1727149580668,1.59589122,2630.4,2630.2,3.87790087]
[1727149581559,1.59589122,2630.4,2630.3,0.7785]
[1727149581766,1.59589122,2630.4,2630.3,4.58034]
[1727149581983,1.59589122,2630.4,2630.3,5.48061192]
[1727149582185,1.59589122,2630.5,2630.4,3.8017]
[1727149582385,1.99630096,2630.6,2630.4,3.8017]
[1727149582705,1.59751736,2630.5,2630.4,3.8017]
[1727149582904,1.59751736,2630.5,2630.4,4.72993119]
[1727149584996,1.59751736,2630.6,2630.4,4.72993119]
[1727149585220,1.59751736,2630.6,2630.5,3.80155]
[1727149585520,1.99692933,2630.7,2630.6,3.80141]
[1727149586577,1.99692933,2630.7,2630.6,4.57991]
[1727149586779,2.39472165,2630.9,2630.7,3.80126]
[1727149587014,1.59752485,2630.8,2630.7,4.65577595]
[1727149587331,1.99692933,2631.0,2630.7,4.65577595]
[1727149587507,1.99692933,2631.0,2630.9,3.80098]
[1727149589289,1.99692933,2631.1,2630.9,3.80098]
[1727149589498,2.4243152,2631.3,2631.0,0.38769942]
[1727149590414,1.99533486,2631.1,2631.0,0.38769942]
[1727149590584,2.4243152,2631.3,2631.0,0.38769942]
[1727149590791,1.99533786,2631.1,2631.0,0.38769942]
[1727149592529,2.07305934,2631.1,2631.0,0.38769942]
[1727149593230,2.07221527,2631.1,2631.0,0.38769942]
[1727149594896,0.07772148,2631.1,2631.0,0.38769942]
[1727149595120,1.67285613,2631.1,2631.0,0.38769942]
[1727149597132,0.07772148,2631.1,2631.0,0.38769942]
[1727149598950,0.07772148,2631.1,2631.0,0.88769942]
[1727149599233,0.07772148,2631.1,2631.0,0.5]
[1727149602298,0.07772148,2631.1,2631.0,5.20264075]
[1727149602732,0.0382057,2631.4,2631.2,3.8004]
[1727149602939,0.0382057,2631.4,2631.2,3.87640116]
[1727149603110,0.07804568,2631.3,2631.2,3.87640116]
[1727149603439,0.07804568,2631.3,2631.2,1.17276067]
[1727149603602,0.07804568,2631.3,2631.2,1.09675951]
[1727149604334,0.07804568,2631.3,2631.2,1.17276063]
[1727149604514,0.07804568,2631.3,2631.2,1.09675951]
[1727149604917,0.07804568,2631.3,2631.2,1.17276066]
[1727149605116,0.07804568,2631.3,2631.2,1.09675951]
[1727149606335,0.07804568,2631.3,2631.2,4.97330072]
[1727149609544,0.07804568,2631.3,2631.2,5.79080072]
[1727149615137,0.07804568,2631.3,2631.2,1.99026132]
[1727149615357,0.07804568,2631.3,2631.2,1.09675951]
[1727149616061,0.07804568,2631.3,2631.2,4.89729951]
[1727149616258,0.07804568,2631.3,2631.2,4.97330125]
[1727149616558,0.07804568,2631.3,2631.2,4.89729951]
[1727149616912,0.07804568,2631.3,2631.2,4.97330144]
[1727149620362,0.07804568,2631.3,2631.2,1.09675951]
[1727149621524,0.07804568,2631.3,2631.1,3.80059]
[1727149622545,0.07804568,2631.3,2631.2,3.80054]
[1727149622723,0.07804568,2631.3,2631.2,4.64414573]
[1727149626867,0.07804568,2631.3,2631.2,9.65885966]
[1727149627159,0.0382057,2631.4,2631.3,8.118]
[1727149627361,0.0382057,2631.4,2631.3,9.83639339]
[1727149628183,0.0382057,2631.4,2631.3,10.24912408]
[1727149628624,0.0382057,2631.4,2631.3,9.83639339]
[1727149635964,1.66134035,2632.2,2632.1,3.79924]
[1727149635965,1.63334035,2632.2,2632.1,3.79924]
[1727149636201,0.0382057,2632.2,2632.1,5.496764]
[1727149636360,0.11726998,2632.2,2632.1,5.57273114]
[1727149636560,0.0382057,2632.2,2632.1,5.57273114]
[1727149636747,0.0382057,2632.2,2632.1,7.03744507]
[1727149638348,0.0382057,2632.2,2632.1,5.496764]
[1727149638783,0.0382057,2632.2,2632.1,4.179164]
[1727149642656,0.5155217,2632.2,2632.1,4.179164]
[1727149643695,0.43572738,2632.2,2632.1,4.179164]
[1727149643877,0.43572738,2632.2,2632.1,4.25513819]
[1727149646708,0.5155217,2632.2,2632.1,4.25513819]
[1727149648668,0.5155217,2632.2,2632.1,4.179164]
[1727149651507,0.11800002,2632.2,2632.1,4.179164]
[1727149651711,0.43573349,2632.2,2632.1,4.179164]
[1727149652011,0.51552781,2632.2,2632.1,4.25513857]
[1727149652213,0.58172781,2632.2,2631.8,3.79962]
[1727149652376,0.58172781,2632.2,2631.1,7.48]
[1727149652377,0.0662,2632.1,2631.6,3.79986]
[1727149652596,0.0662,2632.1,2631.8,3.79965]
[1727149652597,0.07976862,2632.0,2631.8,3.79965]
[1727149653498,0.07976862,2632.0,2631.8,3.79959]
[1727149653696,0.07976862,2632.0,2631.9,3.79953]
[1727149653896,0.07976862,2632.0,2631.9,4.559442]
[1727149655917,0.07976862,2632.0,2631.9,0.759912]
[1727149656120,0.07976862,2632.0,2631.9,4.559442]
[1727149656311,0.07976862,2632.0,2631.9,5.40142734]
[1727149656496,0.43573349,2632.2,2631.9,3.06661127]
[1727149656697,0.43573349,2632.2,2632.1,3.79924]
[1727149656996,0.0382057,2632.2,2632.1,3.87521459]
[1727149657398,0.43573373,2632.2,2632.1,3.87521459]
[1727149657846,0.43573373,2632.2,2632.1,3.79924]
[1727149660946,0.43573373,2632.2,2632.1,5.19121526]
[1727149661266,0.0382057,2632.2,2632.1,6.29741329]
[1727149665534,0.0382057,2632.2,2632.1,6.79741329]
[1727149666736,0.0382057,2632.2,2632.1,8.26212722]
[1727149667042,0.0382057,2632.2,2632.1,8.18615196]
[1727149667750,0.0382057,2632.2,2632.1,6.17143803]
[1727149667950,0.0382057,2632.2,2632.1,6.24740672]
[1727149669552,0.0382057,2632.2,2632.1,6.74740672]
[1727149670078,0.0382057,2632.2,2632.1,5.90543803]
[1727149670284,0.11771216,2632.2,2632.1,5.90543803]
[1727149671382,0.11771216,2632.2,2632.1,5.98141132]
[1727149671679,0.0382057,2632.2,2632.1,5.98141132]
[1727149673748,0.0382057,2632.2,2632.1,6.48141132]
[1727149674848,0.0382057,2632.2,2632.1,6.40543803]
[1727149675651,0.0382057,2632.2,2632.1,6.48141129]
[1727149676579,0.0382057,2632.2,2632.1,7.29401129]
[1727149677668,0.0382057,2632.2,2632.1,7.79401129]
[1727149677981,0.0382057,2632.2,2632.1,7.71803803]
[1727149678946,0.0382057,2632.2,2632.1,6.90543803]
[1727149680243,0.11782526,2632.2,2632.1,6.90543803]
[1727149681480,0.11782526,2632.2,2632.1,7.31907719]
[1727149681887,0.11782526,2632.2,2632.1,7.40543803]
[1727149682088,0.18402526,2632.2,2632.1,2.5]
[1727149682670,2.11447738,2632.2,2632.1,2.5]
[1727149683202,0.11782526,2632.2,2632.1,2.5]
[1727149683365,2.11447738,2632.2,2632.1,2.5]
[1727149684286,2.18067738,2632.2,2632.1,2.5]
[1727149687873,2.18030382,2632.2,2632.1,2.5]
[1727149690005,0.18402526,2632.2,2632.1,2.5]
[1727149690722,2.18006095,2632.2,2632.1,2.5]
[1727149692622,1.714519,2632.2,2632.1,3.5329]
[1727149692924,1.714519,2632.2,2632.1,7.33214]
[1727149692925,0.11782526,2632.2,2632.1,7.33214]
[1727149693482,0.11782526,2632.2,2632.1,7.40811339]
[1727149693728,0.11782526,2632.2,2632.1,7.33214]
[1727149696082,0.11782526,2632.2,2632.1,10.40811482]
[1727149696412,0.11782526,2632.2,2632.1,10.33214]
[1727149696607,0.11782526,2632.2,2632.1,10.74549491]
[1727149696787,0.0382057,2632.2,2632.1,10.74549491]
[1727149697196,0.11760935,2632.2,2632.1,10.74549491]
[1727149697403,0.0382057,2632.2,2632.1,10.74549491]
[1727149698031,0.0382057,2632.2,2632.1,10.74553157]
[1727149698399,0.11760935,2632.2,2632.1,10.74553157]
[1727149698607,0.0382057,2632.2,2632.1,10.33214]
[1727149699189,0.0382057,2632.2,2632.1,10.74555058]
[1727149699590,0.11760935,2632.2,2632.1,10.74555058]
[1727149699785,0.0382057,2632.2,2632.1,10.74555058]
[1727149700099,0.0382057,2632.2,2632.1,12.21026451]
[1727149702727,0.0382057,2632.2,2632.1,11.79685393]
[1727149703126,0.0382057,2632.2,2632.1,12.21046561]
[1727149703332,0.0382057,2632.2,2632.1,13.80460669]
[1727149703492,0.0382057,2632.2,2632.1,15.29314525]
[1727149703831,0.0382057,2632.2,2632.1,17.47017295]
[1727149704296,0.0382057,2632.2,2632.1,16.1639872]
[1727149705456,0.0382057,2632.2,2632.1,13.74378357]
[1727149705751,0.0382057,2632.2,2632.1,14.81824372]
[1727149705936,0.0382057,2632.2,2632.1,13.94780821]
[1727149706138,0.0382057,2632.2,2632.1,14.81834585]
[1727149706349,0.0382057,2632.2,2632.1,13.94780821]
[1727149709038,0.0382057,2632.2,2632.1,12.87334806]
[1727149709766,0.0382057,2632.2,2632.1,13.94742463]
[1727149711820,0.0382057,2632.2,2632.1,12.87334806]
[1727149712244,0.0382057,2632.2,2632.1,13.94569242]
[1727149712958,0.0382057,2632.2,2632.1,13.2857882]
[1727149713539,0.0382057,2632.2,2632.1,18.54737515]
[1727149713833,0.0382057,2632.2,2632.1,16.74737515]
[1727149714023,0.0382057,2632.2,2632.1,18.91847987]
[1727149714361,0.0382057,2632.2,2632.1,19.74264693]
[1727149714558,0.0382057,2632.2,2632.1,18.44003538]
[1727149714761,0.0382057,2632.2,2632.1,17.61559385]
[1727149715129,0.0382057,2632.2,2632.1,13.80323839]
[1727149715527,0.0382057,2632.2,2632.1,16.82983039]
[1727149717822,0.0382057,2632.2,2632.1,11.29438338]
[1727149718028,0.0382057,2632.2,2632.1,12.75909731]
[1727149721663,0.0382057,2632.2,2632.1,13.28559144]
[1727149721970,0.0382057,2632.2,2632.1,13.39099501]
[1727149722263,0.0382057,2632.2,2632.1,13.8032023]
[1727149723062,0.0382057,2632.2,2632.1,13.39099501]
[1727149723270,0.0382057,2632.2,2632.1,13.80316882]
[1727149724972,0.0382057,2632.2,2632.1,13.39099501]
[1727149725668,0.0382057,2632.2,2632.1,14.25727057]
[1727149725855,0.0382057,2632.2,2632.1,14.66940889]
[1727149726061,0.0382057,2632.2,2632.1,14.66940635]
[1727149726843,0.0382057,2632.2,2632.1,13.80313333]
[1727149727934,0.0382057,2632.2,2632.1,31.92300844]
[1727149728297,0.0382057,2632.2,2632.1,26.75728196]
[1727149728640,0.0382057,2632.2,2632.1,26.7571295]
[1727149729041,2.38782015,2633.6,2632.1,26.7571295]
[1727149729042,1.59210587,2634.0,2633.1,0.7759]
[1727149729277,1.59210587,2634.0,2632.2,8.92320999]
[1727149729278,0.1044,2634.4,2633.4,3.7759]
[1727149729480,0.0382057,2634.6,2634.5,3.79578]
[1727149729677,0.1044,2634.5,2634.1,3.87221103]
[1727149729885,0.1044,2634.5,2633.9,3.79664]
[1727149730880,0.1044,2634.5,2634.0,3.79647]
[1727149731438,0.1044,2634.5,2633.9,3.79664]
[1727149731792,0.1044,2634.5,2633.8,3.0]
[1727149731944,0.1044,2634.5,2634.0,3.7965]
[1727149734545,0.1044,2634.5,2634.1,3.79633]
[1727149735195,0.1044,2634.5,2634.2,3.79615]
[1727149735401,0.1044,2634.5,2634.0,7.5929]
[1727149737505,0.1044,2634.5,2634.0,3.7964]
[1727149738167,0.1044,2634.5,2634.2,3.79612]
[1727149738682,0.1044,2634.5,2634.0,7.59279]
[1727149739204,0.1044,2634.5,2634.1,3.7963]
[1727149740789,0.1044,2634.5,2634.0,3.79639]
[1727149741368,1.46471393,2634.3,2633.7,3.79692]
[1727149741706,0.1044,2634.2,2633.7,3.79692]
[1727149741871,0.1044,2634.1,2633.7,3.79692]
[1727149742398,0.06772755,2634.0,2633.7,3.79692]
[1727149743015,0.06772755,2634.0,2633.5,3.79716]
[1727149743786,0.1044,2633.9,2633.5,3.79716]
[1727149744099,0.1044,2633.9,2633.3,3.79746]
[1727149744100,5.36579393,2633.9,2633.3,3.79737]
[1727149744279,0.71322211,2633.8,2633.3,3.79737]
[1727149745083,4.51014211,2633.8,2633.2,3.79764]
[1727149745284,0.71322211,2633.8,2633.3,3.7975]
[1727149745479,4.51003211,2633.8,2633.3,3.7975]
[1727149745877,0.71322211,2633.8,2633.3,3.7975]
[1727149746079,0.16986996,2633.8,2633.3,3.7975]
[1727149748184,0.16986996,2633.8,2633.6,3.79707]
[1727149748390,0.16986996,2633.8,2633.5,3.79711]
[1727149749106,0.16986996,2633.8,2633.6,3.79705]
[1727149749301,0.16986996,2633.8,2633.7,3.79693]
[1727149750527,0.06546996,2633.8,2633.7,4.6398619]
[1727149751022,0.1044,2634.1,2633.9,3.79652]
[1727149751227,0.1044,2634.1,2634.0,3.7965]
[1727149752091,0.1044,2634.3,2634.1,3.79629]
[1727149752309,0.1044,2634.3,2634.2,3.79621]
[1727149752490,0.1044,2634.3,2634.1,3.79629]
[1727149753700,0.1044,2634.3,2634.2,3.79621]
[1727149754635,0.1044,2634.5,2634.1,3.79629]
[1727149756599,0.1044,2634.5,2634.2,3.79613]
[1727149756801,0.1044,2634.5,2634.3,3.79599]
[1727149757520,0.0653262,2634.4,2634.1,3.79629]
[1727149757843,0.0653262,2634.4,2634.1,7.59256]
[1727149758134,0.0653262,2634.4,2634.1,7.59255]
[1727149758422,0.0653262,2634.4,2634.1,3.79627]
[1727149759192,0.0653262,2634.4,2634.3,3.79607]
[1727149760132,0.0653262,2634.4,2634.3,4.56289014]
[1727149760332,0.0382057,2634.6,2634.3,4.56289014]
[1727149760506,0.0653262,2634.4,2634.3,4.56289014]
[1727149760719,0.0382057,2634.6,2634.5,3.79578]
[1727149762349,0.0382057,2634.6,2634.5,3.87168653]
[1727149762529,0.0382057,2634.6,2634.5,4.7151292]
[1727149763277,0.0382057,2634.6,2634.5,8.5457292]
[1727149763431,0.0382057,2634.6,2634.5,8.46982267]
[1727149764375,0.0382057,2634.6,2634.5,7.63922267]
[1727149764576,0.0382057,2634.6,2634.5,7.71512607]
[1727149765582,0.0382057,2634.6,2634.5,7.63922267]
[1727149765794,0.0382057,2634.6,2634.5,4.63922267]
[1727149766139,0.0382057,2634.6,2634.5,4.71512811]
[1727149768073,0.0382057,2634.6,2634.5,4.63922267]
[1727149768243,0.0382057,2634.6,2634.5,4.71512807]
[1727149768452,0.0382057,2634.6,2634.4,3.79584]
[1727149769089,0.06658908,2634.5,2634.4,3.79584]
[1727149770988,0.0382057,2634.6,2634.4,3.79584]
[1727149771346,0.06658908,2634.5,2634.4,3.79584]
[1727149772803,0.0382057,2634.6,2634.5,4.58028]
[1727149772962,0.0382057,2634.6,2634.5,5.81768772]
[1727149773351,0.0382057,2634.6,2634.5,6.36768772]
[1727149773662,0.0382057,2634.6,2634.5,9.36768772]
[1727149774012,0.0382057,2634.6,2634.5,9.29178843]
[1727149774160,0.0382057,2634.6,2634.5,8.74178843]
[1727149774651,0.0382057,2634.6,2634.5,9.29178843]
[1727149775765,0.0382057,2634.6,2634.4,3.79584]
[1727149776174,0.06445319,2634.5,2634.4,3.79584]
[1727149785779,0.06445319,2634.5,2634.3,3.79607]
[1727149785985,0.1044,2634.4,2634.3,3.79607]
[1727149786414,0.16890459,2634.4,2634.1,3.7963]
[1727149786724,0.1044,2634.4,2634.1,3.79626]
[1727149787213,0.06438639,2634.3,2634.1,3.79626]
[1727149787422,0.06438639,2634.3,2634.2,3.79621]
[1727149787627,0.0682057,2634.6,2634.2,3.79621]
[1727149787628,0.0682057,2634.6,2634.2,3.87212481]
[1727149787838,0.0682057,2634.6,2634.2,3.79621]
[1727149788036,0.06429902,2634.5,2634.2,7.59232]
[1727149788335,0.06429902,2634.5,2634.4,3.79593]
[1727149791231,0.09429902,2634.5,2634.4,3.79593]
[1727149792233,0.09429902,2634.5,2634.3,3.79603]
[1727149793238,0.09429902,2634.5,2634.2,3.79611]
[1727149793807,0.09429902,2634.5,2634.4,3.79593]
[1727149794141,0.09429902,2634.5,2634.3,3.79606]
[1727149794338,0.09429902,2634.5,2634.3,3.79597]
[1727149794700,0.09429902,2634.5,2634.3,3.79595]
[1727149795314,0.09429902,2634.5,2634.4,3.79593]
[1727149796043,0.09429902,2634.5,2634.3,7.59193]
[1727149796208,0.09429902,2634.5,2634.3,8.427403]
[1727149796804,0.09429902,2634.5,2634.4,3.79593]
[1727149797250,0.09429902,2634.5,2634.3,4.631423]
[1727149797929,0.09429902,2634.5,2634.3,3.79595]
[1727149798844,0.1044,2634.4,2634.1,3.79629]
[1727149799220,0.1044,2634.4,2634.1,7.59256]
[1727149799537,0.06413454,2634.3,2634.1,7.59256]
[1727149799707,0.06413454,2634.3,2634.1,3.79627]
[1727149800341,0.06413454,2634.3,2634.1,7.59254]
[1727149800549,0.06413454,2634.3,2634.1,3.79627]
[1727149800720,0.06413454,2634.3,2633.9,6.79656]
[1727149801401,0.06413454,2634.3,2633.9,10.59313]
[1727149802319,0.06413454,2634.3,2634.0,3.79641]
[1727149802710,0.06413454,2634.3,2633.9,5.75685274]
[1727149802914,0.03,2634.1,2633.9,3.79656]
[1727149803452,0.06413454,2634.0,2633.9,7.59312]
[1727149803632,0.03,2634.1,2633.9,7.59312]
[1727149803816,0.06413454,2634.0,2633.9,7.59312]
[1727149805021,0.03,2634.1,2633.9,3.79656]
[1727149805323,0.03,2634.1,2634.0,3.7965]
[1727149806233,0.03,2634.1,2634.0,4.555806]
[1727149808851,0.03,2634.3,2634.1,3.79634]
[1727149811069,0.03,2634.3,2634.2,0.5]
[1727149814165,0.03,2634.3,2634.2,4.29621]
[1727149815057,0.03,2634.3,2634.2,4.79621]
[1727149817268,0.03,2634.3,2634.2,1.0]
[1727149817471,0.16847801,2634.3,2634.2,1.0]
[1727149817688,0.64981538,2634.3,2634.2,1.0]
[1727149817890,0.74390881,2634.3,2634.2,1.0]
[1727149818266,4.53997881,2634.3,2634.2,1.0]
[1727149820353,6.93036842,2634.3,2634.2,1.0]
[1727149820548,4.53997881,2634.3,2634.2,1.0]
[1727149821192,6.93036842,2634.3,2634.2,1.0]
[1727149821364,6.9313669,2634.3,2634.2,1.0]
[1727149822057,4.53997881,2634.3,2634.2,1.0]
[1727149822561,6.9313669,2634.3,2634.2,1.0]
[1727149823193,4.53997881,2634.3,2634.2,1.0]
[1727149827873,6.93030945,2634.3,2634.2,1.0]
[1727149828711,4.53997881,2634.3,2634.2,1.0]
[1727149828911,10.32869789,2634.3,2634.2,1.0]
[1727149829397,7.53997881,2634.3,2634.2,1.0]
[1727149829708,8.99971461,2634.3,2634.2,1.0]
[1727149830219,11.38957986,2634.3,2634.2,1.0]
[1727149830400,8.99971461,2634.3,2634.2,1.0]
[1727149830715,6.38444076,2634.3,2634.2,1.0]
[1727149830918,5.45429923,2634.3,2634.2,1.0]
[1727149831908,5.50108899,2634.3,2634.2,1.0]
[1727149834677,7.89077051,2634.3,2634.2,1.0]
[1727149836511,5.50108899,2634.3,2634.2,1.0]
[1727149836714,9.05944056,2634.3,2634.2,1.0]
[1727149837079,7.89077051,2634.3,2634.2,1.0]
[1727149837278,5.50108899,2634.3,2634.2,1.0]
[1727149838712,1.60061899,2634.3,2634.2,1.0]
[1727149839217,0.14088319,2634.3,2634.2,1.0]
[1727149842285,0.14088319,2634.3,2634.2,1.7863]
[1727149842485,0.14088319,2634.3,2634.2,6.140767]
[1727149843931,0.14088319,2634.3,2634.2,2.344557]
[1727149845988,0.14088319,2634.3,2634.2,6.140767]
[1727149847093,0.14088319,2634.3,2634.2,2.344557]
[1727149850087,0.14088319,2634.3,2634.2,1.0]
[1727149850727,3.93695319,2634.3,2634.2,1.0]
[1727149852122,0.14088319,2634.3,2634.2,1.0]
[1727149861852,0.14088319,2634.3,2634.2,5.61951]
[1727149863452,0.14088319,2634.3,2634.2,5.6954267]
[1727149863865,0.14088319,2634.3,2634.2,6.64459737]
[1727149865042,0.14088319,2634.3,2634.2,5.64459737]
[1727149865240,0.14088319,2634.3,2634.2,6.14459737]
[1727149865754,0.14088319,2634.3,2634.2,6.06868067]
[1727149869246,0.14088319,2634.3,2634.2,6.56868067]
[1727149873559,0.14088319,2634.3,2634.2,7.06868067]
[1727149874956,0.24528319,2634.3,2634.2,1.5]
[1727149876752,0.14088319,2634.3,2634.2,1.5]
[1727149877563,0.14088319,2634.3,2634.2,2.0]
[1727149878144,0.24528319,2634.3,2634.2,2.0]
[1727149878469,4.82507451,2634.3,2634.2,2.0]
[1727149879026,1.02900451,2634.3,2634.2,2.0]
[1727149879929,4.82507451,2634.3,2634.2,2.0]
[1727149881551,4.82507451,2634.3,2634.2,2.5]
[1727149882669,0.14088319,2634.3,2634.2,2.5]
[1727149885879,0.11088319,2634.3,2634.2,2.47]
[1727149886088,7.6296557,2634.6,2634.2,2.47]
[1727149886292,0.10990058,2634.5,2634.2,2.47]
[1727149886788,0.1044,2634.4,2634.2,2.47]
[1727149886950,1.4597358,2634.3,2634.2,2.47]
[1727149887146,2.15271402,2634.3,2634.2,2.47]
[1727149887483,6.0586846,2634.3,2634.2,2.47]
[1727149890885,6.1630846,2634.3,2634.2,2.47]
[1727149893717,9.1630846,2634.3,2634.2,2.47]
[1727149893890,11.9536795,2634.3,2634.2,2.47]
[1727149894413,9.1630846,2634.3,2634.2,2.47]
[1727149896978,11.9536795,2634.3,2634.2,2.47]
[1727149898278,11.95090086,2634.3,2634.2,2.47]
[1727149898990,11.95054082,2634.3,2634.2,2.47]
[1727149899424,10.49080502,2634.3,2634.2,2.47]
[1727149899716,10.0267999,2634.3,2634.2,2.47]